[Event "Titled Tuesday Blitz June 29 2021"]
[White "AnotherGrumpy"]
[Black "Kotofeyca"]
[WhiteElo "2586"]
[BlackElo "2401"]
[Result "1-0"]
[Round "11"]
[TimeControl "180+1"]
[Date "2021.06.29"]
[WhiteClock "0:00:05"]
[BlackClock "0:00:06"]

1. d4 {[%clk 0:03:00]}  d5 {[%clk 0:02:59]} 2. c4 {[%clk 0:03:01]}  c6 {[%clk 0:03:00]} 3. Nc3 {[%clk 0:03:00]}  Nf6 {[%clk 0:03:01]} 4. Nf3 {[%clk 0:03:00]}  dxc4 {[%clk 0:03:00]} 5. a4 {[%clk 0:03:00]}  Bg4 {[%clk 0:03:00]} 6. Ne5 {[%clk 0:02:57]}  Bh5 {[%clk 0:03:00]} 7. f3 {[%clk 0:02:53]}  Nfd7 {[%clk 0:02:59]} 8. Nxc4 {[%clk 0:02:52]}  e5 {[%clk 0:02:58]} 9. Be3 {[%clk 0:02:41]}  f6 {[%clk 0:02:49]} 10. dxe5 {[%clk 0:02:35]}  Nxe5 {[%clk 0:02:47]} 11. Qxd8+ {[%clk 0:02:31]}  Kxd8 {[%clk 0:02:47]} 12. O-O-O {[%clk 0:02:31]}  Kc7 {[%clk 0:02:46]} 13. Nxe5 {[%clk 0:02:27]}  fxe5 {[%clk 0:02:47]} 14. Bf2 {[%clk 0:02:28]}  Nd7 {[%clk 0:02:40]} 15. Bg3 {[%clk 0:02:19]}  Bc5 {[%clk 0:02:30]} 16. e4 {[%clk 0:02:15]}  Bf7 {[%clk 0:02:24]} 17. Kc2 {[%clk 0:02:15]}  Rhe8 {[%clk 0:02:16]} 18. Be2 {[%clk 0:02:02]}  Bd6 {[%clk 0:02:13]} 19. Rd2 {[%clk 0:01:33]}  Nc5 {[%clk 0:02:12]} 20. b4 {[%clk 0:01:31]}  Nb3 {[%clk 0:02:05]} 21. Rxd6 {[%clk 0:01:10]}  Kxd6 {[%clk 0:02:04]} 22. Rd1+ {[%clk 0:01:09]}  Kc7 {[%clk 0:01:52]} 23. f4 {[%clk 0:00:47]}  Rad8 {[%clk 0:01:33]} 24. fxe5 {[%clk 0:00:39]}  Be6 {[%clk 0:01:22]} 25. Rd6 {[%clk 0:00:34]}  Nd4+ {[%clk 0:01:17]} 26. Kd3 {[%clk 0:00:28]}  Nxe2 {[%clk 0:01:09]} 27. Nxe2 {[%clk 0:00:29]}  Rd7 {[%clk 0:00:53]} 28. Nd4 {[%clk 0:00:26]}  Rde7 {[%clk 0:00:52]} 29. Kc3 {[%clk 0:00:22]}  g6 {[%clk 0:00:38]} 30. Bh4 {[%clk 0:00:22]}  Bc8 {[%clk 0:00:21]} 31. Bxe7 {[%clk 0:00:18]}  Rxe7 {[%clk 0:00:22]} 32. Rf6 {[%clk 0:00:18]}  Rxe5 {[%clk 0:00:16]} 33. Rf7+ {[%clk 0:00:19]}  Kb6 {[%clk 0:00:17]} 34. Kd3 {[%clk 0:00:16]}  h5 {[%clk 0:00:15]} 35. Rg7 {[%clk 0:00:15]}  g5 {[%clk 0:00:12]} 36. h3 {[%clk 0:00:14]}  Be6 {[%clk 0:00:11]} 37. Ke3 {[%clk 0:00:11]}  Ba2 {[%clk 0:00:10]} 38. g3 {[%clk 0:00:08]}  Bb1 {[%clk 0:00:10]} 39. Kd2 {[%clk 0:00:06]}  Rxe4 {[%clk 0:00:10]} 40. a5+ {[%clk 0:00:06]}  Ka6 {[%clk 0:00:09]} 41. Nb3 {[%clk 0:00:06]}  Rxb4 {[%clk 0:00:09]} 42. Kc3 {[%clk 0:00:06]}  Rb5 {[%clk 0:00:08]} 43. Nd4 {[%clk 0:00:06]}  Rc5+ {[%clk 0:00:08]} 44. Kb4 {[%clk 0:00:06]}  Rd5 {[%clk 0:00:07]} 45. Ne6 {[%clk 0:00:05]}  Bf5 {[%clk 0:00:06]} 46. Nc7# {[%clk 0:00:05]} 1-0


[Site "https://www.chess.com"]

[Event "Titled Tuesday Blitz June 29 2021"]
[White "Artem_0degov"]
[Black "pavel_skatchkov"]
[WhiteElo "2468"]
[BlackElo "2617"]
[Result "1-0"]
[Round "11"]
[TimeControl "180+1"]
[Date "2021.06.29"]
[WhiteClock "0:00:09"]
[BlackClock "0:00:08"]

1. d4 {[%clk 0:03:00]}  Nf6 {[%clk 0:02:59]} 2. c4 {[%clk 0:02:59]}  e6 {[%clk 0:03:00]} 3. Nf3 {[%clk 0:02:59]}  d5 {[%clk 0:03:00]} 4. Nc3 {[%clk 0:02:59]}  Bb4 {[%clk 0:03:01]} 5. Bg5 {[%clk 0:02:58]}  dxc4 {[%clk 0:03:00]} 6. e4 {[%clk 0:02:50]}  h6 {[%clk 0:03:00]} 7. Bxf6 {[%clk 0:02:49]}  Qxf6 {[%clk 0:03:01]} 8. Bxc4 {[%clk 0:02:47]}  c5 {[%clk 0:03:02]} 9. O-O {[%clk 0:02:47]}  cxd4 {[%clk 0:03:01]} 10. e5 {[%clk 0:02:16]}  Qd8 {[%clk 0:03:00]} 11. Qxd4 {[%clk 0:02:04]}  Qxd4 {[%clk 0:02:59]} 12. Nxd4 {[%clk 0:02:05]}  Bd7 {[%clk 0:02:44]} 13. Rac1 {[%clk 0:02:04]}  Ke7 {[%clk 0:02:18]} 14. Rfd1 {[%clk 0:02:00]}  Nc6 {[%clk 0:02:02]} 15. Nf3 {[%clk 0:01:47]}  g5 {[%clk 0:01:57]} 16. Ne4 {[%clk 0:01:30]}  g4 {[%clk 0:01:54]} 17. Nf6 {[%clk 0:01:29]}  Be8 {[%clk 0:01:08]} 18. Nxg4 {[%clk 0:01:25]}  h5 {[%clk 0:01:08]} 19. Ne3 {[%clk 0:01:17]}  Rg8 {[%clk 0:01:07]} 20. a3 {[%clk 0:00:57]}  Ba5 {[%clk 0:01:06]} 21. Ba2 {[%clk 0:00:56]}  Bb6 {[%clk 0:01:04]} 22. Nc4 {[%clk 0:00:56]}  Bc5 {[%clk 0:00:10]} 23. b4 {[%clk 0:00:40]}  Bb6 {[%clk 0:00:10]} 24. Nd6 {[%clk 0:00:40]}  Rb8 {[%clk 0:00:09]} 25. Ne4 {[%clk 0:00:37]}  h4 {[%clk 0:00:03]} 26. Nf6 {[%clk 0:00:36]}  Rg7 {[%clk 0:00:02]} 27. Nh5 {[%clk 0:00:32]}  Rg6 {[%clk 0:00:02]} 28. Nf4 {[%clk 0:00:32]}  Rg4 {[%clk 0:00:02]} 29. Rc4 {[%clk 0:00:28]}  Bd7 {[%clk 0:00:02]} 30. h3 {[%clk 0:00:21]}  Rg7 {[%clk 0:00:02]} 31. Nh5 {[%clk 0:00:20]}  Rg6 {[%clk 0:00:03]} 32. Nxh4 {[%clk 0:00:19]}  Be8 {[%clk 0:00:03]} 33. Nxg6+ {[%clk 0:00:17]}  fxg6 {[%clk 0:00:04]} 34. Nf4 {[%clk 0:00:17]}  Nxe5 {[%clk 0:00:05]} 35. Re4 {[%clk 0:00:17]}  Kf6 {[%clk 0:00:05]} 36. Rde1 {[%clk 0:00:15]}  Bc7 {[%clk 0:00:06]} 37. Nxe6 {[%clk 0:00:14]}  Bd6 {[%clk 0:00:06]} 38. Nd4 {[%clk 0:00:11]}  g5 {[%clk 0:00:07]} 39. f4 {[%clk 0:00:10]}  gxf4 {[%clk 0:00:06]} 40. Rxf4+ {[%clk 0:00:11]}  Kg7 {[%clk 0:00:07]} 41. Nf5+ {[%clk 0:00:11]}  Kg6 {[%clk 0:00:07]} 42. Nxd6 {[%clk 0:00:12]}  Kg5 {[%clk 0:00:08]} 43. Rf5+ {[%clk 0:00:09]} 1-0


[Site "https://www.chess.com"]

[Event "Titled Tuesday Blitz June 29 2021"]
[White "Atousa1"]
[Black "jcibarra"]
[WhiteElo "2516"]
[BlackElo "2803"]
[Result "0-1"]
[Round "11"]
[TimeControl "180+1"]
[Date "2021.06.29"]
[WhiteClock "0:00:07"]
[BlackClock "0:00:08"]

1. e4 {[%clk 0:03:00]}  c5 {[%clk 0:02:57]} 2. Nf3 {[%clk 0:03:00]}  e6 {[%clk 0:02:53]} 3. d4 {[%clk 0:03:00]}  cxd4 {[%clk 0:02:54]} 4. Nxd4 {[%clk 0:03:01]}  Bc5 {[%clk 0:02:54]} 5. Nb3 {[%clk 0:03:00]}  Bb6 {[%clk 0:02:54]} 6. Nc3 {[%clk 0:02:58]}  Ne7 {[%clk 0:02:51]} 7. Bd3 {[%clk 0:02:53]}  O-O {[%clk 0:02:50]} 8. O-O {[%clk 0:02:53]}  f5 {[%clk 0:02:48]} 9. exf5 {[%clk 0:02:47]}  Nxf5 {[%clk 0:02:45]} 10. Bxf5 {[%clk 0:02:40]}  Rxf5 {[%clk 0:02:43]} 11. Be3 {[%clk 0:02:40]}  d5 {[%clk 0:02:37]} 12. Bxb6 {[%clk 0:02:35]}  Qxb6 {[%clk 0:02:36]} 13. Nd4 {[%clk 0:02:18]}  Rf6 {[%clk 0:02:29]} 14. Qd2 {[%clk 0:01:45]}  Nc6 {[%clk 0:02:24]} 15. Rad1 {[%clk 0:01:40]}  Bd7 {[%clk 0:02:09]} 16. Na4 {[%clk 0:01:34]}  Qxd4 {[%clk 0:02:00]} 17. Qxd4 {[%clk 0:01:31]}  Nxd4 {[%clk 0:02:01]} 18. Rxd4 {[%clk 0:01:32]}  e5 {[%clk 0:02:01]} 19. Rh4 {[%clk 0:01:22]}  g5 {[%clk 0:01:59]} 20. Rb4 {[%clk 0:01:22]}  a5 {[%clk 0:01:57]} 21. Rb6 {[%clk 0:01:20]}  Rc6 {[%clk 0:01:32]} 22. Rxb7 {[%clk 0:01:12]}  Bf5 {[%clk 0:01:18]} 23. Nc3 {[%clk 0:01:02]}  Rd8 {[%clk 0:01:12]} 24. Rb5 {[%clk 0:00:57]}  d4 {[%clk 0:01:10]} 25. Nd5 {[%clk 0:00:55]}  Kf8 {[%clk 0:00:55]} 26. Rxa5 {[%clk 0:00:37]}  Rxc2 {[%clk 0:00:47]} 27. Nb4 {[%clk 0:00:22]}  Rc4 {[%clk 0:00:30]} 28. Rxe5 {[%clk 0:00:22]}  Bg6 {[%clk 0:00:28]} 29. Nd5 {[%clk 0:00:19]}  Rc5 {[%clk 0:00:22]} 30. Rxg5 {[%clk 0:00:17]}  Rcxd5 {[%clk 0:00:21]} 31. Rxd5 {[%clk 0:00:13]}  Rxd5 {[%clk 0:00:22]} 32. Rd1 {[%clk 0:00:13]}  d3 {[%clk 0:00:16]} 33. Rd2 {[%clk 0:00:11]}  Rc5 {[%clk 0:00:16]} 34. f4 {[%clk 0:00:11]}  Rc2 {[%clk 0:00:17]} 35. Rd1 {[%clk 0:00:12]}  Rxb2 {[%clk 0:00:16]} 36. g4 {[%clk 0:00:12]}  Be4 {[%clk 0:00:16]} 37. f5 {[%clk 0:00:12]}  Rxa2 {[%clk 0:00:13]} 38. h3 {[%clk 0:00:12]}  Re2 {[%clk 0:00:12]} 39. Kf1 {[%clk 0:00:12]}  Ke7 {[%clk 0:00:12]} 40. Ra1 {[%clk 0:00:12]}  Kf6 {[%clk 0:00:11]} 41. Ra7 {[%clk 0:00:12]}  h6 {[%clk 0:00:11]} 42. Ra6+ {[%clk 0:00:11]}  Kg5 {[%clk 0:00:11]} 43. Re6 {[%clk 0:00:11]}  Kf4 {[%clk 0:00:11]} 44. Rd6 {[%clk 0:00:10]}  Bg2+ {[%clk 0:00:07]} 45. Kg1 {[%clk 0:00:10]}  d2 {[%clk 0:00:08]} 46. f6 {[%clk 0:00:07]}  Kg3 {[%clk 0:00:07]} 47. Rd3+ {[%clk 0:00:06]}  Bf3 {[%clk 0:00:08]} 48. Rxf3+ {[%clk 0:00:06]}  Kxf3 {[%clk 0:00:08]} 49. f7 {[%clk 0:00:07]}  d1=Q# {[%clk 0:00:08]} 0-1


[Site "https://www.chess.com"]

[Event "Titled Tuesday Blitz June 29 2021"]
[White "Beca95"]
[Black "ChessWarrior7197"]
[WhiteElo "2847"]
[BlackElo "2973"]
[Result "1-0"]
[Round "11"]
[TimeControl "180+1"]
[Date "2021.06.29"]
[WhiteClock "0:00:06"]
[BlackClock "0:00:01"]

1. e4 {[%clk 0:03:00]}  c5 {[%clk 0:02:55]} 2. Nf3 {[%clk 0:03:00]}  e6 {[%clk 0:02:56]} 3. d4 {[%clk 0:03:00]}  cxd4 {[%clk 0:02:57]} 4. Nxd4 {[%clk 0:03:01]}  Nf6 {[%clk 0:02:57]} 5. Nc3 {[%clk 0:03:00]}  Nc6 {[%clk 0:02:58]} 6. Ndb5 {[%clk 0:03:00]}  Bb4 {[%clk 0:02:55]} 7. a3 {[%clk 0:02:59]}  Bxc3+ {[%clk 0:02:55]} 8. Nxc3 {[%clk 0:03:00]}  d5 {[%clk 0:02:56]} 9. exd5 {[%clk 0:02:59]}  exd5 {[%clk 0:02:57]} 10. Bd3 {[%clk 0:02:58]}  O-O {[%clk 0:02:58]} 11. O-O {[%clk 0:02:57]}  Bg4 {[%clk 0:02:55]} 12. Qd2 {[%clk 0:02:47]}  d4 {[%clk 0:02:50]} 13. Ne2 {[%clk 0:02:45]}  Re8 {[%clk 0:02:51]} 14. Ng3 {[%clk 0:02:44]}  Ne5 {[%clk 0:02:42]} 15. b3 {[%clk 0:02:36]}  Qd5 {[%clk 0:02:32]} 16. f3 {[%clk 0:02:05]}  Nxd3 {[%clk 0:01:58]} 17. Qxd3 {[%clk 0:02:05]}  Bd7 {[%clk 0:01:58]} 18. a4 {[%clk 0:02:04]}  Rac8 {[%clk 0:01:42]} 19. Bb2 {[%clk 0:02:02]}  Nh5 {[%clk 0:01:03]} 20. c4 {[%clk 0:01:50]}  Nf4 {[%clk 0:00:52]} 21. Qxd4 {[%clk 0:01:49]}  Qxd4+ {[%clk 0:00:51]} 22. Bxd4 {[%clk 0:01:50]}  h5 {[%clk 0:00:49]} 23. h4 {[%clk 0:01:48]}  g5 {[%clk 0:00:47]} 24. Rfe1 {[%clk 0:01:38]}  f5 {[%clk 0:00:24]} 25. Bxa7 {[%clk 0:01:08]}  gxh4 {[%clk 0:00:22]} 26. Nf1 {[%clk 0:01:08]}  Kf7 {[%clk 0:00:19]} 27. Be3 {[%clk 0:01:06]}  Ne6 {[%clk 0:00:13]} 28. Kh2 {[%clk 0:00:48]}  f4 {[%clk 0:00:13]} 29. Bf2 {[%clk 0:00:48]}  h3 {[%clk 0:00:14]} 30. Rad1 {[%clk 0:00:38]}  Red8 {[%clk 0:00:05]} 31. Bh4 {[%clk 0:00:36]}  hxg2 {[%clk 0:00:05]} 32. Kxg2 {[%clk 0:00:35]}  Rg8+ {[%clk 0:00:05]} 33. Kf2 {[%clk 0:00:35]}  Bc6 {[%clk 0:00:05]} 34. Re5 {[%clk 0:00:32]}  Rce8 {[%clk 0:00:03]} 35. Rf5+ {[%clk 0:00:30]}  Kg6 {[%clk 0:00:04]} 36. Rf6+ {[%clk 0:00:30]}  Kh7 {[%clk 0:00:04]} 37. Rd6 {[%clk 0:00:29]}  Rg6 {[%clk 0:00:04]} 38. Rxg6 {[%clk 0:00:21]}  Kxg6 {[%clk 0:00:05]} 39. a5 {[%clk 0:00:20]}  Kf5 {[%clk 0:00:03]} 40. b4 {[%clk 0:00:21]}  Nf8 {[%clk 0:00:02]} 41. b5 {[%clk 0:00:20]}  Bd7 {[%clk 0:00:02]} 42. Rf6+ {[%clk 0:00:17]}  Ke5 {[%clk 0:00:02]} 43. Nd2 {[%clk 0:00:17]}  Bf5 {[%clk 0:00:01]} 44. Rf7 {[%clk 0:00:16]}  Ne6 {[%clk 0:00:01]} 45. Bf6+ {[%clk 0:00:16]}  Kd6 {[%clk 0:00:02]} 46. Nb3 {[%clk 0:00:11]}  Bd3 {[%clk 0:00:02]} 47. Rxb7 {[%clk 0:00:05]}  Bxc4 {[%clk 0:00:02]} 48. Nd2 {[%clk 0:00:05]}  Bd3 {[%clk 0:00:02]} 49. Rb6+ {[%clk 0:00:05]}  Kd5 {[%clk 0:00:02]} 50. a6 {[%clk 0:00:05]}  Nc5 {[%clk 0:00:03]} 51. Kg1 {[%clk 0:00:05]}  Re1+ {[%clk 0:00:03]} 52. Kh2 {[%clk 0:00:05]}  Re2+ {[%clk 0:00:03]} 53. Kh3 {[%clk 0:00:06]}  Rxd2 {[%clk 0:00:03]} 54. a7 {[%clk 0:00:06]}  Ra2 {[%clk 0:00:04]} 55. Ra6 {[%clk 0:00:07]}  Nxa6 {[%clk 0:00:02]} 56. a8=Q+ {[%clk 0:00:07]}  Kc4 {[%clk 0:00:01]} 57. bxa6 {[%clk 0:00:07]}  Be2 {[%clk 0:00:01]} 58. Kh4 {[%clk 0:00:07]}  Ra3 {[%clk 0:00:01]} 59. Qc6+ {[%clk 0:00:07]}  Kb4 {[%clk 0:00:01]} 60. Qd6+ {[%clk 0:00:06]}  Kb3 {[%clk 0:00:01]} 61. Qb6+ {[%clk 0:00:05]}  Ka2 {[%clk 0:00:01]} 62. a7 {[%clk 0:00:06]}  Bxf3 {[%clk 0:00:01]} 63. Qb2# {[%clk 0:00:06]} 1-0


[Site "https://www.chess.com"]

[Event "Titled Tuesday Blitz June 29 2021"]
[White "Blitzking642"]
[Black "tsaruk_maks"]
[WhiteElo "2478"]
[BlackElo "2653"]
[Result "0-1"]
[Round "11"]
[TimeControl "180+1"]
[Date "2021.06.29"]
[WhiteClock "0:00:01"]
[BlackClock "0:00:03"]

1. e4 {[%clk 0:03:00]}  c6 {[%clk 0:02:53]} 2. c4 {[%clk 0:03:00]}  d5 {[%clk 0:02:54]} 3. exd5 {[%clk 0:03:00]}  cxd5 {[%clk 0:02:55]} 4. cxd5 {[%clk 0:03:01]}  Nf6 {[%clk 0:02:55]} 5. Qa4+ {[%clk 0:03:00]}  Nbd7 {[%clk 0:02:55]} 6. Nc3 {[%clk 0:03:00]}  g6 {[%clk 0:02:54]} 7. Bc4 {[%clk 0:03:00]}  Bg7 {[%clk 0:02:55]} 8. Nf3 {[%clk 0:02:58]}  O-O {[%clk 0:02:55]} 9. d3 {[%clk 0:02:59]}  Nb6 {[%clk 0:02:54]} 10. Qb3 {[%clk 0:02:56]}  Bg4 {[%clk 0:02:53]} 11. Ne5 {[%clk 0:02:55]}  Bf5 {[%clk 0:02:53]} 12. O-O {[%clk 0:02:55]}  Qd6 {[%clk 0:02:14]} 13. Re1 {[%clk 0:02:51]}  Rad8 {[%clk 0:02:01]} 14. Nb5 {[%clk 0:02:39]}  Qb8 {[%clk 0:02:01]} 15. d6 {[%clk 0:02:16]}  e6 {[%clk 0:01:59]} 16. h3 {[%clk 0:01:47]}  a6 {[%clk 0:01:55]} 17. Nc3 {[%clk 0:01:47]}  Nxc4 {[%clk 0:01:19]} 18. dxc4 {[%clk 0:01:40]}  Qxd6 {[%clk 0:01:13]} 19. g4 {[%clk 0:01:30]}  Bd3 {[%clk 0:01:13]} 20. Bf4 {[%clk 0:01:17]}  Qd4 {[%clk 0:00:52]} 21. Bg3 {[%clk 0:01:04]}  Nd7 {[%clk 0:00:19]} 22. Nxd3 {[%clk 0:00:51]}  Qxd3 {[%clk 0:00:19]} 23. Rad1 {[%clk 0:00:47]}  Qf3 {[%clk 0:00:19]} 24. Re3 {[%clk 0:00:39]}  Qc6 {[%clk 0:00:20]} 25. Rd6 {[%clk 0:00:34]}  Qc8 {[%clk 0:00:20]} 26. Ne4 {[%clk 0:00:27]}  Ne5 {[%clk 0:00:09]} 27. Rxd8 {[%clk 0:00:17]}  Rxd8 {[%clk 0:00:10]} 28. Nf6+ {[%clk 0:00:09]}  Bxf6 {[%clk 0:00:10]} 29. Bxe5 {[%clk 0:00:10]}  Bxe5 {[%clk 0:00:11]} 30. Rxe5 {[%clk 0:00:10]}  Rd4 {[%clk 0:00:12]} 31. c5 {[%clk 0:00:07]}  Qd7 {[%clk 0:00:11]} 32. Qf3 {[%clk 0:00:04]}  Rd3 {[%clk 0:00:09]} 33. Re3 {[%clk 0:00:03]}  Rd1+ {[%clk 0:00:09]} 34. Kg2 {[%clk 0:00:03]}  Rd5 {[%clk 0:00:08]} 35. Rc3 {[%clk 0:00:03]}  a5 {[%clk 0:00:04]} 36. Qf4 {[%clk 0:00:03]}  Kg7 {[%clk 0:00:03]} 37. b3 {[%clk 0:00:01]}  Qc6 {[%clk 0:00:04]} 38. Rf3 {[%clk 0:00:01]}  Rd7 {[%clk 0:00:01]} 39. Qf6+ {[%clk 0:00:01]}  Kg8 {[%clk 0:00:02]} 40. h4 {[%clk 0:00:01]}  Qxc5 {[%clk 0:00:02]} 41. h5 {[%clk 0:00:01]}  Qd4 {[%clk 0:00:03]} 0-1


[Site "https://www.chess.com"]

[Event "Titled Tuesday Blitz June 29 2021"]
[White "CSB7"]
[Black "Moon_stone123"]
[WhiteElo "2607"]
[BlackElo "2404"]
[Result "1-0"]
[Round "11"]
[TimeControl "180+1"]
[Date "2021.06.29"]
[WhiteClock "0:00:01"]
[BlackClock "0:00:17"]

1. e4 {[%clk 0:03:00]}  c6 {[%clk 0:03:00]} 2. d4 {[%clk 0:03:00]}  d5 {[%clk 0:03:00]} 3. Nc3 {[%clk 0:03:00]}  dxe4 {[%clk 0:03:00]} 4. Nxe4 {[%clk 0:03:01]}  Nf6 {[%clk 0:03:00]} 5. Nxf6+ {[%clk 0:03:00]}  exf6 {[%clk 0:03:01]} 6. c3 {[%clk 0:03:00]}  Bd6 {[%clk 0:03:01]} 7. Bd3 {[%clk 0:03:00]}  O-O {[%clk 0:03:02]} 8. Ne2 {[%clk 0:03:00]}  Re8 {[%clk 0:03:01]} 9. O-O {[%clk 0:02:58]}  Nd7 {[%clk 0:03:01]} 10. Bf4 {[%clk 0:02:47]}  Nf8 {[%clk 0:03:01]} 11. Bxd6 {[%clk 0:02:45]}  Qxd6 {[%clk 0:03:01]} 12. Ng3 {[%clk 0:02:45]}  Qf4 {[%clk 0:02:40]} 13. Qc1 {[%clk 0:02:31]}  Qd6 {[%clk 0:02:29]} 14. Qc2 {[%clk 0:02:17]}  Be6 {[%clk 0:02:18]} 15. Rfe1 {[%clk 0:02:14]}  b5 {[%clk 0:02:16]} 16. Ne4 {[%clk 0:02:06]}  Qf4 {[%clk 0:02:11]} 17. Re3 {[%clk 0:01:31]}  Ng6 {[%clk 0:01:57]} 18. Rae1 {[%clk 0:01:22]}  Red8 {[%clk 0:01:18]} 19. a3 {[%clk 0:00:57]}  a5 {[%clk 0:01:18]} 20. Nc5 {[%clk 0:00:51]}  Bd5 {[%clk 0:01:15]} 21. Be4 {[%clk 0:00:44]}  a4 {[%clk 0:01:12]} 22. Bxd5 {[%clk 0:00:37]}  Rxd5 {[%clk 0:01:11]} 23. Qe4 {[%clk 0:00:34]}  Qg5 {[%clk 0:01:03]} 24. Rg3 {[%clk 0:00:13]}  Qd2 {[%clk 0:01:01]} 25. Qe2 {[%clk 0:00:11]}  Qf4 {[%clk 0:00:59]} 26. Nd3 {[%clk 0:00:10]}  Qh4 {[%clk 0:00:53]} 27. Nb4 {[%clk 0:00:06]}  Rd6 {[%clk 0:00:45]} 28. Rh3 {[%clk 0:00:05]}  Qf4 {[%clk 0:00:43]} 29. Re3 {[%clk 0:00:04]}  h5 {[%clk 0:00:41]} 30. Qxh5 {[%clk 0:00:03]}  Rc8 {[%clk 0:00:22]} 31. g3 {[%clk 0:00:03]}  Qg5 {[%clk 0:00:20]} 32. Qxg5 {[%clk 0:00:04]}  fxg5 {[%clk 0:00:21]} 33. Re8+ {[%clk 0:00:03]}  Rxe8 {[%clk 0:00:21]} 34. Rxe8+ {[%clk 0:00:03]}  Kh7 {[%clk 0:00:22]} 35. Rc8 {[%clk 0:00:03]}  f5 {[%clk 0:00:20]} 36. Rxc6 {[%clk 0:00:03]}  Rd7 {[%clk 0:00:20]} 37. Rc5 {[%clk 0:00:02]}  f4 {[%clk 0:00:21]} 38. Rxg5 {[%clk 0:00:02]}  Re7 {[%clk 0:00:17]} 39. Kg2 {[%clk 0:00:02]}  Re2 {[%clk 0:00:16]} 40. Nd3 {[%clk 0:00:01]}  Rxb2 {[%clk 0:00:16]} 41. Nxf4 {[%clk 0:00:01]}  Rb3 {[%clk 0:00:16]} 42. Nxg6 {[%clk 0:00:01]}  Rxc3 {[%clk 0:00:16]} 43. Ne7 {[%clk 0:00:01]}  Rxa3 {[%clk 0:00:17]} 44. Rh5# {[%clk 0:00:01]} 1-0


[Site "https://www.chess.com"]

[Event "Titled Tuesday Blitz June 29 2021"]
[White "Carnivoras"]
[Black "Arseniy_Nesterov"]
[WhiteElo "2676"]
[BlackElo "2812"]
[Result "1-0"]
[Round "11"]
[TimeControl "180+1"]
[Date "2021.06.29"]
[WhiteClock "0:00:39"]
[BlackClock "0:00:27"]

1. d4 {[%clk 0:03:00]}  d5 {[%clk 0:02:59]} 2. c4 {[%clk 0:03:00]}  e6 {[%clk 0:02:59]} 3. Nc3 {[%clk 0:02:59]}  c5 {[%clk 0:02:59]} 4. cxd5 {[%clk 0:02:57]}  exd5 {[%clk 0:03:00]} 5. Nf3 {[%clk 0:02:55]}  Nc6 {[%clk 0:03:00]} 6. e3 {[%clk 0:02:45]}  Be6 {[%clk 0:02:47]} 7. Bb5 {[%clk 0:02:42]}  a6 {[%clk 0:02:43]} 8. Bxc6+ {[%clk 0:02:41]}  bxc6 {[%clk 0:02:44]} 9. O-O {[%clk 0:02:42]}  Bd6 {[%clk 0:02:41]} 10. b3 {[%clk 0:02:40]}  Ne7 {[%clk 0:02:41]} 11. Ba3 {[%clk 0:02:32]}  cxd4 {[%clk 0:02:28]} 12. Bxd6 {[%clk 0:02:31]}  Qxd6 {[%clk 0:02:24]} 13. exd4 {[%clk 0:02:23]}  O-O {[%clk 0:02:21]} 14. Na4 {[%clk 0:02:23]}  Bg4 {[%clk 0:02:19]} 15. h3 {[%clk 0:02:22]}  Bh5 {[%clk 0:02:19]} 16. Qd3 {[%clk 0:02:19]}  a5 {[%clk 0:02:14]} 17. Rac1 {[%clk 0:02:14]}  Bg6 {[%clk 0:02:06]} 18. Qc3 {[%clk 0:02:09]}  Rfc8 {[%clk 0:02:02]} 19. Ne5 {[%clk 0:02:01]}  f6 {[%clk 0:01:57]} 20. Nxg6 {[%clk 0:02:00]}  hxg6 {[%clk 0:01:58]} 21. Nb6 {[%clk 0:02:00]}  Rcb8 {[%clk 0:01:44]} 22. Nxa8 {[%clk 0:01:59]}  Rxa8 {[%clk 0:01:45]} 23. Qc5 {[%clk 0:01:57]}  Qd7 {[%clk 0:01:45]} 24. Rfe1 {[%clk 0:01:56]}  Kf7 {[%clk 0:01:44]} 25. Rc2 {[%clk 0:01:49]}  g5 {[%clk 0:01:29]} 26. Rce2 {[%clk 0:01:47]}  Ng6 {[%clk 0:01:21]} 27. Re6 {[%clk 0:01:44]}  Ra6 {[%clk 0:01:16]} 28. Rd6 {[%clk 0:01:38]}  Qb7 {[%clk 0:01:00]} 29. Rd8 {[%clk 0:01:26]}  a4 {[%clk 0:00:56]} 30. Qd6 {[%clk 0:01:21]}  c5 {[%clk 0:00:38]} 31. Rd7+ {[%clk 0:00:52]}  Kg8 {[%clk 0:00:38]} 32. Rxb7 {[%clk 0:00:51]}  Rxd6 {[%clk 0:00:38]} 33. dxc5 {[%clk 0:00:52]}  Rc6 {[%clk 0:00:36]} 34. b4 {[%clk 0:00:51]}  d4 {[%clk 0:00:37]} 35. Rd7 {[%clk 0:00:46]}  Rc8 {[%clk 0:00:35]} 36. Rxd4 {[%clk 0:00:45]}  Ne5 {[%clk 0:00:36]} 37. Rc1 {[%clk 0:00:42]}  Nc6 {[%clk 0:00:27]} 38. Rdc4 {[%clk 0:00:41]}  Na7 {[%clk 0:00:27]} 39. c6 {[%clk 0:00:41]}  Kf7 {[%clk 0:00:27]} 40. Rc5 {[%clk 0:00:40]}  Ke6 {[%clk 0:00:27]} 41. b5 {[%clk 0:00:40]}  Kd6 {[%clk 0:00:27]} 42. b6 {[%clk 0:00:39]} 1-0


[Site "https://www.chess.com"]

[Event "Titled Tuesday Blitz June 29 2021"]
[White "ChristopherYoo"]
[Black "Aradhya2000"]
[WhiteElo "2921"]
[BlackElo "2699"]
[Result "1-0"]
[Round "11"]
[TimeControl "180+1"]
[Date "2021.06.29"]
[WhiteClock "0:01:14"]
[BlackClock "0:01:01"]

1. e4 {[%clk 0:03:00]}  e5 {[%clk 0:03:00]} 2. Nf3 {[%clk 0:02:59]}  Nc6 {[%clk 0:03:00]} 3. Bb5 {[%clk 0:02:57]}  a6 {[%clk 0:03:01]} 4. Ba4 {[%clk 0:02:56]}  Nf6 {[%clk 0:03:01]} 5. d4 {[%clk 0:02:56]}  exd4 {[%clk 0:03:02]} 6. O-O {[%clk 0:02:54]}  Be7 {[%clk 0:03:02]} 7. e5 {[%clk 0:02:54]}  Ne4 {[%clk 0:02:57]} 8. Nxd4 {[%clk 0:02:54]}  Nxd4 {[%clk 0:02:49]} 9. Qxd4 {[%clk 0:02:53]}  Nc5 {[%clk 0:02:50]} 10. Nc3 {[%clk 0:02:54]}  O-O {[%clk 0:02:48]} 11. Bb3 {[%clk 0:02:54]}  d6 {[%clk 0:02:48]} 12. Bf4 {[%clk 0:02:53]}  dxe5 {[%clk 0:02:46]} 13. Qxe5 {[%clk 0:02:54]}  Bd6 {[%clk 0:02:46]} 14. Qd4 {[%clk 0:02:54]}  Bxf4 {[%clk 0:02:45]} 15. Qxf4 {[%clk 0:02:55]}  Nxb3 {[%clk 0:02:44]} 16. axb3 {[%clk 0:02:56]}  Be6 {[%clk 0:02:44]} 17. Rfe1 {[%clk 0:02:54]}  Qd6 {[%clk 0:02:41]} 18. Qxd6 {[%clk 0:02:53]}  cxd6 {[%clk 0:02:42]} 19. Rad1 {[%clk 0:02:54]}  Rfd8 {[%clk 0:02:43]} 20. Rd2 {[%clk 0:02:52]}  Kf8 {[%clk 0:02:42]} 21. Ne2 {[%clk 0:02:52]}  Rac8 {[%clk 0:02:35]} 22. Nf4 {[%clk 0:02:47]}  Bf5 {[%clk 0:02:35]} 23. c3 {[%clk 0:02:47]}  Re8 {[%clk 0:02:34]} 24. Rxe8+ {[%clk 0:02:39]}  Rxe8 {[%clk 0:02:33]} 25. Kf1 {[%clk 0:02:36]}  Be6 {[%clk 0:02:31]} 26. Nxe6+ {[%clk 0:02:28]}  Rxe6 {[%clk 0:02:31]} 27. Rd4 {[%clk 0:02:29]}  Ke7 {[%clk 0:02:31]} 28. Rb4 {[%clk 0:02:06]}  b5 {[%clk 0:02:29]} 29. Rd4 {[%clk 0:02:01]}  Kd7 {[%clk 0:02:27]} 30. b4 {[%clk 0:02:01]}  Kc6 {[%clk 0:02:26]} 31. f3 {[%clk 0:02:00]}  d5 {[%clk 0:02:16]} 32. Kf2 {[%clk 0:02:00]}  Re8 {[%clk 0:02:06]} 33. g4 {[%clk 0:01:57]}  g5 {[%clk 0:02:03]} 34. Rd2 {[%clk 0:01:53]}  Kd6 {[%clk 0:02:02]} 35. Rd1 {[%clk 0:01:50]}  Kc6 {[%clk 0:01:51]} 36. Ra1 {[%clk 0:01:48]}  Kb6 {[%clk 0:01:51]} 37. h4 {[%clk 0:01:36]}  h6 {[%clk 0:01:10]} 38. Rh1 {[%clk 0:01:26]}  a5 {[%clk 0:01:09]} 39. hxg5 {[%clk 0:01:24]}  hxg5 {[%clk 0:01:09]} 40. Rh6+ {[%clk 0:01:16]}  Re6 {[%clk 0:01:09]} 41. Rxe6+ {[%clk 0:01:12]}  fxe6 {[%clk 0:01:10]} 42. bxa5+ {[%clk 0:01:13]}  Kxa5 {[%clk 0:01:09]} 43. f4 {[%clk 0:01:12]}  Ka4 {[%clk 0:00:57]} 44. fxg5 {[%clk 0:01:12]}  Kb3 {[%clk 0:00:58]} 45. g6 {[%clk 0:01:12]}  Kxb2 {[%clk 0:00:59]} 46. g7 {[%clk 0:01:13]}  Kxc3 {[%clk 0:00:59]} 47. g8=Q {[%clk 0:01:13]}  b4 {[%clk 0:01:00]} 48. Qxe6 {[%clk 0:01:13]}  b3 {[%clk 0:01:00]} 49. Qxd5 {[%clk 0:01:13]}  b2 {[%clk 0:01:01]} 50. Qe4 {[%clk 0:01:14]} 1-0


[Site "https://www.chess.com"]